{"text_format":"1","workbook":"xlsx","n_sheets":4,"sheets":["Yurtdışı","Yurtiçi","Kıbrıs","Data"],"not_rendered":{"charts":0,"images":0,"macros":1,"external_links":0,"defined_names":3,"comments":0,"pivot_tables":0},"unopened":[],"bounds":{"document_bytes":16777216,"sheet_cells":100000,"rows_first":2000,"rows_last":500,"rows_between":2000,"halvings":0,"cell_chars":16384,"cell_head_chars":4096},"cells_cut":0,"cells_raw":0,"read":"whole","date_system":"1900"}

{"sheet":"Yurtdışı","index":0,"n_rows":30,"n_cols":4,"rows_kept":30,"cut":false,"hidden":false,"merged":[[1,2,1,4],[29,2,29,4]]}
[]
[null,null,"Yurtdışı Seyahat Harcırahı"]
[]
[null,null,"Parametreler"]
[null,null,"Seyahat edenin ismini yazınız"]
[null,null,"Seyahat edilen ülkeyi seçiniz"]
[null,null,"Brüt ücret aralığını (asgari/azami) seçiniz"]
[null,null,"Seyahatin başlangıç tarihi yazınız (yolculuklar dahil) "]
[null,null,"Seyahatin bitiş tarihi yazınız (yolculuklar dahil) "]
[null,null,"İlk 10 gün için Konaklama Gider Farkı Hesaplansın mı ?"]
[null,null,"Gerçek (faturalı) konaklama giderleri toplamını yazınız"]
[null,null,"Seyahatin Bittiği Tarihteki DÖVİZ SATIŞ Kurunu yazınız"]
[null,null,"İlk 10 gün için Harcırah %50 Artırımlı Uygulansın mı ?"]
[]
[]
[null,null,"Hesaplanan Harcırah"]
[null,null,"Seyahat süresi (gün)"]
[null,null,"Bir günlük harcırah (yol ücreti hariç)"]
[null,null,"Toplam Çıplak Harcırah Tutarı (Yemek ve Konaklama Giderleri Karşılığı)"]
[null,null,"İlk 10 Gün İçin % 50 Fazla Harcırah farkı"]
[null,null,"İlk 10 Gün İçin Konaklama Gider Farkı"]
[null,null,"Yemek ve Konaklama İçin Ödenebilecek Max. Harcırah Tutarı"]
[null,null,"Brüt Harcırahın TL Karşılığı"]
[null,null,"Damga Vergisi Kesintisi",7.5900000000000004E-3]
[null,null,"Net Harcırahın TL Karşılığı","TL"]
[]
[null,null,"nin imzası"]
[]
[]
[null,null,"Uyarı: Hesapladığınız bu harcırah sadece yemek ve konaklama giderleri karşılığı içindir. Gerçek yol giderlerini (uçak, otobüs, taksi vb) fatura karşılığı ayrıca ödeyebilirsiniz."]

{"sheet":"Yurtiçi","index":1,"n_rows":30,"n_cols":5,"rows_kept":30,"cut":false,"hidden":false,"merged":[[1,2,1,4],[29,2,29,4]]}
[]
[null,null,"Yurtiçi Seyahat Harcırahı"]
[]
[null,null,"Parametreler"]
[null,null,"Seyahat edenin ismini yazınız"]
[null,null,"Seyahat edilen şehri seçiniz",null,2]
[null,null,"Brüt ücret aralığı (asgari/azami) seçiniz"]
[null,null,"Seyahatin başlangıç tarihi yazınız (yolculuklar dahil) "]
[null,null,"Seyahatin bitiş tarihi yazınız (yolculuklar dahil) "]
[]
[]
[]
[]
[]
[]
[null,null,"Hesaplanan Harcırah"]
[null,null,"Seyahat süresi (gün)"]
[null,null,"Bir günlük harcırah (yol ücreti hariç)"]
[null,null,"Toplam Çıplak Harcırah Tutarı (Yemek ve Konaklama Giderleri Karşılığı)"]
[]
[]
[]
[]
[null,null,"Damga Vergisi Kesintisi",7.5900000000000004E-3]
[null,null,"Net Harcırah Tutarı","TL"]
[]
[null,null,"nin imzası"]
[]
[]
[null,null,"Uyarı: Hesapladığınız bu harcırah sadece yemek ve konaklama giderleri karşılığı içindir. Gerçek yol giderlerini (uçak, otobüs, taksi vb) fatura karşılığı ayrıca ödeyebilirsiniz."]

{"sheet":"Kıbrıs","index":2,"n_rows":30,"n_cols":4,"rows_kept":30,"cut":false,"hidden":false,"merged":[[1,2,1,4],[29,2,29,4]]}
[]
[null,null,"Kuzey Kıbrıs Seyahat Harcırahı"]
[]
[null,null,"Parametreler"]
[null,null,"Seyahat edenin ismini yazınız"]
[null,null,"Seyahat edilen yer"]
[null,null,"Brüt ücret aralığı (asgari/azami) seçiniz"]
[null,null,"Seyahatin başlangıç tarihi yazınız (yolculuklar dahil) "]
[null,null,"Seyahatin bitiş tarihi yazınız (yolculuklar dahil) "]
[]
[]
[]
[]
[]
[]
[null,null,"Hesaplanan Harcırah"]
[null,null,"Seyahat süresi (gün)"]
[null,null,"Bir günlük harcırah (yol ücreti hariç)"]
[null,null,"Toplam Çıplak Harcırah Tutarı (Yemek ve Konaklama Giderleri Karşılığı)"]
[]
[]
[]
[]
[null,null,"Damga Vergisi Kesintisi",7.5900000000000004E-3]
[null,null,"Net Harcırah Tutarı","TL"]
[]
[null,null,"nin imzası"]
[]
[]
[null,null,"Uyarı: Hesapladığınız bu harcırah sadece yemek ve konaklama giderleri karşılığı içindir. Gerçek yol giderlerini (uçak, otobüs, taksi vb) fatura karşılığı ayrıca ödeyebilirsiniz."]

{"sheet":"Data","index":3,"n_rows":201,"n_cols":16,"rows_kept":201,"cut":false,"hidden":true,"merged":[[7,14,7,15],[53,5,53,6],[77,5,77,6]]}
[]
[]
[]
[]
[null,null,null,"YurtDIŞI Harcırah ( Yemek ve Konaklama için) Miktarları ve Dilimleri"]
[]
[]
[null,null,null,"Sıra","ÜLKELER "," PARA BİRİMLERİ","II SÜTUN","III SÜTUN","V SÜTUN","VI SÜTUN","VII SÜTUN",null,"Sıra","Geç. Tarihi","2026-01-01"]
[null,null,null,1,"A.B.D.                   ","USD",199,{"$f":"ROUND(G9*0.8,0)","v":159},128,{"$f":"ROUND(I9*0.94,0)","v":120},{"$f":"ROUND(J9*0.85,0)","v":102},null,"No","Denk Geldiği Sütun","En Alt","En Üst"]
[null,null,null,2,"Almanya                        ","EURO",176,{"$f":"ROUND(G10*0.8,0)","v":141},113,{"$f":"ROUND(I10*0.94,0)","v":106},89,null,1,"II",35907.57,999999]
[null,null,null,3,"Avustralya ","Avustralya Doları",312,250,199,188,159,null,2,"III",35657.760000000002,35907.56]
[null,null,null,4,"Avusturya ","EURO",183,146,117,110,93,null,3,"IV",31910.51,35657.75]
[null,null,null,5,"Belçika","EURO",175,140,112,106,88,null,4,"V",23992.7,31910.5]
[null,null,null,6,"Danimarka       ","Danimarka Kronu",1320,1053,843,795,668,null,5,"VI",1,23992.690000000002]
[null,null,null,7,"Finlandiya","EURO",159,128,102,97,80]
[null,null,null,8,"Fransa","EURO",169,134,108,101,{"$f":"ROUND(J16*0.85,0)","v":86}]
[null,null,null,9,"Hollanda","EURO",170,136,109,102,87,null,"Kaynaklar"]
[null,null,null,10,"İngiltere                   ","Sterlin",127,100,82,76,65]
[null,null,null,11,"İrlanda","EURO",161,129,103,98,81,null,"Harcırah Miktarları : ",null,"31 Ocak 2026 tarihli Resmi Gazetede yayımlanan 10928 sayılı CBK"]
[null,null,null,12,"İspanya","EURO",168,134,108,101,85]
[null,null,null,13,"İsveç","İsveç Kronu",1462,1167,933,881,739]
[null,null,null,14,"İsviçre                  ","İsviçre Frangı",286,229,183,173,145,null,"Dilimler",null,"6 Ocak 2026 tarihli Hazine ve Maliye Bakanlığı Kamu Mali Yönetim ve Dönüşüm GM Genelgesinde"]
[null,null,null,15,"İtalya","EURO",162,130,104,98,82]
[null,null,null,16,"Japonya","Japon Yeni",32159,25730,20601,19355,16296]
[null,null,null,17,"Kanada","Kanada Doları",264,211,169,159,135]
[null,null,null,18,"Kuveyt ","Kuveyt Dinarı",56,45,37,35,28]
[null,null,null,19,"Lüksemburg","EURO",173,137,111,104,88,null,"Artırımlı Harcırah Uygulaması"]
[null,null,null,20,"Norveç ","Norveç Kronu",1317,1051,841,794,667,null,"Evet"]
[null,null,null,21,"Portekiz                          ","EURO",164,131,105,99,83,null,"Hayır"]
[null,null,null,22,"Suudi Arabistan      ","Suudi A. Riyali",677,540,434,408,344]
[null,null,null,23,"Yunanistan","EURO",166,133,106,100,84,null,"Konaklama Gider Farkı Ödemesi"]
[null,null,null,24,"Kosova","EURO",135,107,85,81,69]
[null,null,null,25,"Diğer AB Ülkeleri         ","EURO",140,111,89,84,72,null,"Evet"]
[null,null,null,26,"Diğer Ülkeler         ","USD",173,138,110,105,88,null,"Hayır"]
[]
[]
[]
[]
[]
[]
[]
[]
[]
[]
[]
[]
[]
[]
[]
[]
[null,null,"YurtİÇİ Harcırah (Yemek ve Konaklama için) Miktarları ve Dilimleri"]
[]
[null,null,null,null,null,null,null,2026]
[null,null,null,null,"Geç. Tarihi","2026-01-01",null,"Harcırah",null,null,null,null,"Kaynaklar"]
[null,null,null,null,"Dereceler","En Alt","En Üst","TL"]
[null,null,null,null,1,35907.57,999999,900,null,null,null,null,"Harcırah Miktarları : ",null,"7567 sayılı 2026 Yılı Merkezi Yönetim Bütçe Kanununa ekli (H) Cetvelinde "]
[null,null,null,null,2,35657.760000000002,35907.56,890]
[null,null,null,null,3,32604.44,35657.75,880]
[null,null,null,null,4,30106.27,32604.43,870,null,null,null,null,"Dilimler",null,{"$f":"O22","v":"6 Ocak 2026 tarihli Hazine ve Maliye Bakanlığı Kamu Mali Yönetim ve Dönüşüm GM Genelgesinde"}]
[null,null,null,null,5,23992.7,30106.260000000002,860]
[null,null,null,null,6,1,23992.690000000002,850]
[]
[]
[]
[]
[]
[]
[]
[]
[]
[]
[]
[]
[]
[null,null,"Kuzey Kıbrıs Harcırah ( Yemek ve Konaklama için) Miktarları ve Dilimleri"]
[]
[null,null,null,null,null,null,null,2026]
[null,null,null,null,"Geç. Tarihi","2026-01-01",null,"Harcırah",null,null,null,null,"Kaynaklar"]
[null,null,null,null,"Dereceler","En Alt","En Üst","TL"]
[null,null,null,null,1,35907.56,999999,2005,null,null,null,null,"Harcırah Miktarları : ",null,"31 Ocak 2026 tarihli Resmi Gazetede yayımlanan 10928 sayılı CBK"]
[null,null,null,null,2,35657.760000000002,35907.549999999996,1765]
[null,null,null,null,3,31910.5,35657.75,1527]
[null,null,null,null,4,23992.690000000002,31910.49,1285,null,null,null,null,"Dilimler",null,{"$f":"O59","v":"6 Ocak 2026 tarihli Hazine ve Maliye Bakanlığı Kamu Mali Yönetim ve Dönüşüm GM Genelgesinde"}]
[null,null,null,null,5,1,23992.680000000004,1045]
[]
[]
[]
[]
[]
[]
[]
[]
[]
[]
[]
[]
[]
[]
[]
[]
[]
[]
[]
[]
[]
[]
[]
[]
[]
[]
[]
[]
[]
[]
[null,null,null,null,null,null,null,null,null,null,null,109.1]
[]
[]
[]
[]
[]
[null,null,null,"Adana ",null,"Kuzey Kıbrıs"]
[null,null,null,"Adiyaman"]
[null,null,null,"Afyonkarahisar"]
[null,null,null,"Ağri "]
[null,null,null,"Aksaray"]
[null,null,null,"Amasya "]
[null,null,null,"Ankara"]
[null,null,null,"Antalya "]
[null,null,null,"Ardahan "]
[null,null,null,"Artvin"]
[null,null,null,"Aydin "]
[null,null,null,"Balikesir"]
[null,null,null,"Bartin "]
[null,null,null,"Batman "]
[null,null,null,"Bayburt "]
[null,null,null,"Bilecik"]
[null,null,null,"Bingöl"]
[null,null,null,"Bitlis"]
[null,null,null,"Bolu"]
[null,null,null,"Burdur "]
[null,null,null," Bursa"]
[null,null,null,"Çanakkale"]
[null,null,null,"Çankiri"]
[null,null,null,"Çorum "]
[null,null,null,"Denizli"]
[null,null,null,"Diyarbakir "]
[null,null,null,"Edirne "]
[null,null,null,"Elaziğ "]
[null,null,null,"Erzincan"]
[null,null,null,"Erzurum "]
[null,null,null,"Eskişehir "]
[null,null,null,"Gaziantep"]
[null,null,null,"Giresun "]
[null,null,null,"Gümüşhane"]
[null,null,null,"Hakkari"]
[null,null,null,"Hatay "]
[null,null,null,"İğdir"]
[null,null,null,"İsparta "]
[null,null,null,"İstanbul"]
[null,null,null,"İzmir "]
[null,null,null,"Kahramanmaraş "]
[null,null,null,"Karabük"]
[null,null,null,"Karaman"]
[null,null,null,"Kars  "]
[null,null,null,"Kastamonu "]
[null,null,null,"Kayseri "]
[null,null,null,"Kirikkale "]
[null,null,null,"Kirklareli "]
[null,null,null,"Kirşehir "]
[null,null,null,"Kilis "]
[null,null,null,"Kocaeli  "]
[null,null,null,"Konya"]
[null,null,null,"Kütahya"]
[null,null,null,"Malatya "]
[null,null,null,"Manisa"]
[null,null,null,"Mardin"]
[null,null,null,"Mersin "]
[null,null,null,"Muğla  "]
[null,null,null,"Muş"]
[null,null,null,"Nevşehir"]
[null,null,null,"Niğde  "]
[null,null,null,"Ordu "]
[null,null,null,"Osmaniye "]
[null,null,null,"Rize"]
[null,null,null,"Sakarya "]
[null,null,null,"Samsun"]
[null,null,null,"Siirt "]
[null,null,null,"Sinop"]
[null,null,null,"Sivas "]
[null,null,null,"Şanliurfa "]
[null,null,null,"Şirnak "]
[null,null,null,"Tekirdağ  "]
[null,null,null,"Tokat"]
[null,null,null,"Trabzon"]
[null,null,null,"Tunceli "]
[null,null,null,"Uşak "]
[null,null,null,"Van "]
[null,null,null,"Yalova  "]
[null,null,null,"Yozgat "]
[null,null,null,"Zonguldak "]
[null,null,null,"Birden fazla şehir"]